bitfinex/quotes_ETHUSD_20220227
["timestamp","ask_amount","ask_price","bid_price","bid_amount"]
[1645969510180,0.0382406,2742.1,2740.0,4.0092799]
[1645969510374,1.0,2741.5,2740.1,3.5]
[1645969510570,1.0,2741.5,2740.0,0.0203499]
[1645969510840,1.0,2741.5,2739.5,3.5]
[1645969510841,36.79642284,2741.4,2739.6,3.5551]
[1645969511049,1.0,2741.2,2739.7,1.48136833]
[1645969511241,1.2249,2740.6,2739.7,1.08136833]
[1645969511447,0.25,2741.1,2740.6,0.00282834]
[1645969511448,1.0,2740.7,2740.6,0.00282834]
[1645969511644,1.2249,2740.8,2740.6,0.00282834]
[1645969511843,0.25,2741.1,2740.6,0.00282834]
[1645969511844,1.4749,2741.1,2740.6,0.00282834]
[1645969512042,2.0,2740.7,2740.6,0.00282834]
[1645969512246,3.2249,2740.7,2740.5,0.07071202]
[1645969512444,1.2249,2740.6,2739.6,3.5551]
[1645969512746,1.2249,2740.6,2740.3,0.05374455]
[1645969512747,31.79642284,2740.5,2740.3,0.05374455]
[1645969512943,1.0,2739.7,2739.6,1.2017]
[1645969513148,1.0,2739.7,2738.2,1.1554]
[1645969513149,4.51229501,2739.7,2738.2,1.1554]
[1645969513352,1.2249,2739.3,2738.3,0.146]
[1645969513550,2.0,2738.3,2738.2,1.1554]
[1645969513749,1.0,2738.8,2738.2,1.1554]
[1645969513946,31.79642284,2739.0,2738.2,1.1554]
[1645969514148,0.25,2739.2,2738.2,1.1554]
[1645969514585,1.2179,2738.3,2738.2,0.00096]
[1645969514766,38.51432284,2738.3,2737.1,0.1459]
[1645969514967,38.51432284,2738.3,2735.5,0.0361212]
[1645969514968,38.51432284,2738.3,2732.5,4.97032989]
[1645969514969,6.2179,2737.2,2732.5,4.97032989]
[1645969515171,6.2179,2737.2,2731.6,0.00549]
[1645969515172,6.2179,2737.2,2730.7,0.0501]
[1645969515173,0.75583296,2732.5,2730.7,0.0501]
[1645969515368,4.24206097,2732.4,2729.0,1.3883839]
[1645969515571,110.47672084,2732.3,2730.8,95.8549]
[1645969515768,2.0,2730.9,2729.0,0.90853692]
[1645969516085,2.0,2730.9,2726.7,1.143]
[1645969516086,1.78770803,2726.3,2725.0,0.25]
[1645969516272,0.25,2728.7,2726.1,1.0]
[1645969516273,34.95933049,2726.2,2726.1,1.0]
[1645969516471,237.23691818,2726.2,2725.8,0.84132965]
[1645969516672,21.70914671,2725.8,2723.7,3.22955139]
[1645969516868,21.70914671,2725.8,2723.6,0.0173499]
[1645969516869,209.29142404,2725.7,2723.1,0.540022]
[1645969517075,209.29142404,2725.7,2721.2,6.0031637]
[1645969517076,2.0,2722.4,2721.2,6.0031637]
[1645969517272,70.74183536,2722.3,2721.2,6.0031637]
[1645969517472,26.70914671,2721.3,2720.3,2.13271504]
[1645969517671,2.59632584,2721.1,2718.9,0.55048146]
[1645969517875,2.59632584,2721.1,2720.0,11.09194367]
[1645969517876,0.25,2720.6,2720.0,11.09194367]
[1645969518072,0.25231598,2720.4,2720.0,11.09194367]
[1645969518306,0.25231598,2720.4,2720.0,8.62767298]
[1645969518307,0.01292933,2720.4,2720.0,8.62767298]
[1645969518515,0.15122291,2720.1,2718.9,5.0]
[1645969518716,7.076326,2718.6,2715.7,5.0]
[1645969518915,0.5,2722.5,2716.5,7.5]
[1645969519110,8.2067,2722.6,2721.8,6.065e-05]
[1645969519312,5.0,2722.3,2718.6,5.0]
[1645969519515,0.01291473,2721.0,2718.5,7.2782]
[1645969519712,0.0382406,2720.4,2718.8,7.3]
[1645969519910,0.26,2720.6,2720.3,0.5]
[1645969520112,7.0,2720.4,2718.9,0.13819997]
[1645969520416,0.3,2722.0,2720.4,7.10228738]
[1645969520613,28.32290662,2719.1,2718.9,0.13819997]
[1645969520914,8.2067,2722.6,2720.7,1.0]
[1645969520915,0.36452,2722.4,2720.7,1.0]
[1645969521115,1.365,2723.7,2719.0,14.74]
[1645969521116,5.0,2722.2,2719.1,0.36744]
[1645969521317,5.0,2722.2,2719.0,1.66228278]
[1645969521318,1.85727,2723.7,2720.3,7.5]
[1645969521516,1.85727,2723.7,2720.2,4.74]
[1645969521517,8.44223262,2724.3,2720.4,1.19444528]
[1645969521713,8.44223262,2724.3,2720.5,0.3]
[1645969521912,0.25,2723.4,2720.7,0.21986376]
[1645969522163,100.25,2724.2,2720.6,0.23680068]
[1645969522164,0.20348181,2722.7,2720.6,0.23680068]
[1645969522377,8.44223262,2724.3,2722.2,0.00228544]
[1645969522665,0.3675,2725.7,2722.2,0.00228544]
[1645969522666,48.141235,2724.2,2722.7,0.01221474]
[1645969522868,0.126427,2726.6,2722.3,1.1329089]
[1645969522869,0.26,2727.9,2723.3,0.01294828]
[1645969523064,12.89393098,2728.3,2723.8,4.74]
[1645969523065,0.5,2727.6,2723.8,4.74]
[1645969523268,0.25,2727.2,2725.2,4.74]
[1645969523468,0.5,2727.6,2726.4,6.678e-05]
[1645969523668,0.5,2727.6,2725.2,1.3]
[1645969523669,0.75,2727.6,2725.2,1.3]
[1645969523873,13.02035798,2728.9,2726.5,10.0]
[1645969523874,0.25,2727.8,2726.5,10.0]
[1645969524067,13.02035798,2728.9,2726.9,1.0]
[1645969524272,0.01218661,2728.0,2726.9,1.41894623]
[1645969524470,0.01218661,2728.0,2726.6,10.0]
[1645969524670,40.91520103,2727.9,2726.7,0.24920606]
[1645969524873,0.0375758,2727.9,2726.7,0.24920606]
[1645969525168,0.0375758,2727.9,2726.6,0.3]
[1645969525169,2.5,2729.2,2727.8,10.0]
[1645969525370,11.95193098,2730.6,2728.6,10.0]
[1645969525572,11.95193098,2730.6,2728.8,0.5]
[1645969525800,5.15913098,2730.6,2728.9,0.00096]
[1645969526000,0.01266131,2731.0,2728.9,0.00096]
[1645969526001,0.01266131,2731.0,2730.2,10.0]
[1645969526209,0.126427,2732.9,2730.5,7.5]
[1645969526409,0.0368446,2732.9,2730.4,11.27425838]
[1645969526606,0.0368446,2732.9,2730.5,0.30096]
[1645969526803,0.0368446,2732.9,2730.6,0.01325914]
[1645969527009,4.46e-05,2732.9,2731.2,10.0]
[1645969527205,5.0,2733.3,2731.9,0.012]
[1645969527206,4.75,2733.3,2731.9,0.012]
[1645969527409,12.14509328,2734.4,2733.1,0.5]
[1645969527605,1.23000326,2736.1,2733.2,14.91601311]
[1645969527806,1.11229092,2734.1,2733.2,9.38619713]
[1645969528006,0.25,2735.2,2733.2,9.38619713]
[1645969528007,0.13812756,2734.9,2733.8,9.054e-05]
[1645969528208,5.0,2734.3,2733.1,0.312]
[1645969528407,0.1463,2734.2,2733.6,0.05829236]
[1645969528609,0.1463,2734.2,2732.2,1.21414045]
[1645969528610,3.5613967,2734.2,2732.2,0.21334582]
[1645969528914,1.28827107,2732.2,2730.3,0.01277993]
[1645969529117,1.28827107,2732.2,2728.7,1.2429]
[1645969529118,4.5,2731.6,2730.7,0.15508219]
[1645969529313,1.18827107,2732.2,2730.4,0.13819997]
[1645969529314,3.72205277,2732.1,2730.4,0.13819997]
[1645969529550,3.3148861,2731.5,2729.4,0.22945091]
[1645969529749,3.3148861,2731.5,2730.2,0.13819997]
[1645969530158,0.1464,2732.1,2731.4,8.0]
[1645969530159,2.33593367,2732.0,2731.4,8.0]
[1645969530354,0.1551155,2732.8,2731.9,10.5]
[1645969530553,0.0964,2733.1,2732.7,0.5]
[1645969530757,0.25,2735.9,2733.0,0.5]
[1645969530956,0.25,2735.9,2734.8,0.49178263]
[1645969531261,0.25,2735.9,2734.1,0.13819997]
[1645969531262,0.02653967,2734.8,2734.1,0.13819997]
[1645969531460,0.06406327,2734.8,2734.2,0.49178263]
[1645969531656,7.5,2734.7,2733.5,0.30096]
[1645969531955,7.5,2734.7,2732.3,0.23185237]
[1645969531956,4.99991737,2733.6,2729.9,0.126427]
[1645969532156,2.0,2733.7,2733.6,67.474387]
[1645969532356,0.26155549,2733.6,2733.2,0.00204859]
[1645969532558,0.26155549,2733.6,2733.2,4.859e-05]
[1645969532559,0.22176265,2733.3,2733.2,4.859e-05]
[1645969532754,2.0,2733.3,2733.2,4.859e-05]
[1645969532954,7.5,2733.2,2732.5,0.03893303]
[1645969533155,1.16978026,2732.8,2731.0,0.36836]
[1645969533428,0.0375236,2732.8,2730.6,0.9984]
[1645969533629,0.0375236,2732.8,2730.7,7.3214]
[1645969533832,0.0375236,2732.8,2731.2,0.01298112]
[1645969534039,41.457137,2732.7,2731.3,7.3226]
[1645969534236,2.36e-05,2732.7,2731.9,0.01282965]
[1645969534431,2.36e-05,2732.7,2732.6,0.01203576]
[1645969534633,2.0,2734.6,2732.7,7.5]
[1645969534831,0.1820626,2735.4,2733.4,0.01214768]
[1645969535033,6.32041241,2735.6,2734.0,0.0121158]
[1645969535235,0.1462,2734.7,2734.0,0.0121158]
[1645969535830,0.1462,2734.7,2733.8,0.00096]
[1645969536030,2.0,2735.4,2734.0,7.5]
[1645969536233,3.41339885,2735.8,2734.0,7.5]
[1645969536234,1.11612086,2737.0,2735.1,10.0]
[1645969536433,1.11612086,2737.0,2736.0,0.01292889]
[1645969536434,4.054e-05,2737.0,2736.0,0.01292889]
[1645969536634,4.054e-05,2737.0,2736.5,0.01214985]
[1645969536829,4.054e-05,2737.0,2736.6,7.3083]
[1645969537081,100.0,2736.9,2736.6,7.3083]
[1645969537267,1.05366043,2737.1,2736.6,7.3083]
[1645969537466,1.05366043,2737.1,2736.6,7.6083]
[1645969537667,100.0,2737.0,2736.6,7.6083]
[1645969538074,20.766851,2736.9,2736.6,7.6083]
[1645969538269,1.05366043,2737.1,2736.7,0.01298245]
[1645969538270,1.00911781,2737.1,2736.7,0.01298245]
[1645969538671,1.781e-05,2737.1,2736.8,7.3078]
[1645969538869,6.00158463,2738.1,2737.0,0.01240546]
[1645969539072,5.9797637,2738.1,2737.1,7.307]
[1645969539374,0.04035806,2738.0,2737.2,0.00096]
[1645969539570,5.57242176,2738.1,2737.3,7.5]
[1645969539770,3.4330699,2739.1,2737.6,0.01276218]
[1645969539971,3.2766699,2739.1,2738.0,0.01274403]
[1645969540171,20.580675,2739.0,2738.0,0.01274403]
[1645969540370,3.2766699,2739.1,2738.0,0.01274403]
[1645969540571,3.2766699,2739.1,2738.5,0.9976]
[1645969540812,3.2766699,2739.1,2737.4,0.71093081]
[1645969540813,3.2766699,2739.1,2737.5,0.21799659]
[1645969541008,3.2766699,2739.1,2737.6,0.00096]
[1645969541009,1.3831419,2738.8,2737.6,0.00096]
[1645969541218,3.2766699,2739.1,2738.5,0.9976]
[1645969541418,3.2766699,2739.1,2738.0,0.01254176]
[1645969541617,4.99991737,2739.0,2738.0,0.01254176]
[1645969541819,4.99991737,2739.0,2737.8,0.00096]
[1645969541820,0.00546472,2738.9,2738.1,14.300958]
[1645969542025,4.99991737,2738.2,2737.3,7.3065]
[1645969542223,4.99991737,2737.4,2737.1,0.19813445]
[1645969542517,3.29553524,2737.9,2737.3,14.300958]
[1645969542518,3.16853524,2737.9,2737.3,14.300958]
[1645969542717,1.41653524,2737.9,2737.4,12.65302477]
[1645969542918,1.41653524,2737.9,2737.6,12.65302477]
[1645969543122,1.41653524,2737.9,2737.7,12.79912477]
[1645969543318,1.14453183,2737.8,2736.8,0.01219871]
[1645969543519,1.14453183,2737.8,2735.5,0.5]
[1645969543520,0.25,2737.6,2736.9,0.1461]
[1645969543718,0.26893633,2738.1,2735.6,0.8764439]
[1645969543719,4.34531737,2737.0,2735.7,0.1461]
[1645969543920,4.0,2736.3,2734.8,0.01239513]
[1645969544120,4.0,2736.3,2734.6,0.00783593]
[1645969544121,0.25,2735.9,2735.8,73.141483]
[1645969544322,4.79589041,2735.9,2735.8,1.09696529]
[1645969544597,4.79589041,2735.9,2734.9,7.3111]
[1645969544598,0.51552104,2735.9,2734.9,7.3111]
[1645969544778,0.25,2735.9,2735.2,1.12103541]
[1645969544979,4.26091737,2735.3,2734.9,7.3111]
[1645969545179,0.25,2736.7,2733.9,0.4939]
[1645969545180,5.0,2735.0,2733.9,0.4939]
[1645969545387,3.36091737,2734.0,2733.9,0.4939]
[1645969545585,3.36091737,2734.0,2733.9,0.86226]
[1645969545780,0.25,2734.2,2733.9,0.86226]
[1645969545781,0.25,2734.2,2733.9,1.00856]
[1645969545983,0.25,2734.2,2733.9,0.86226]
[1645969545984,2.25,2734.2,2733.9,0.86226]
[1645969546183,0.11091737,2734.2,2733.9,0.86226]
[1645969546584,0.01215588,2736.4,2734.0,0.1463]
[1645969546782,0.01215588,2736.4,2734.0,0.64726]
[1645969546982,5.0,2735.7,2734.1,0.00096]
[1645969547186,3.3651,2736.9,2734.1,0.00096]
[1645969547187,0.43008108,2736.3,2734.1,0.00096]
[1645969547384,0.25,2735.8,2734.1,0.30096]
[1645969547584,0.25,2735.8,2734.8,5.0]
[1645969547781,3.3651,2736.9,2734.9,0.14716]
[1645969547982,0.25,2736.6,2735.1,0.00204573]
[1645969548314,2.0,2736.5,2735.1,0.00204573]
[1645969548516,104.344204,2736.1,2735.2,1.07972794]
[1645969548721,18.148169,2735.9,2735.7,0.01291652]
[1645969548917,0.25,2737.5,2735.8,5.0]
[1645969549114,0.25,2737.5,2735.6,5.3]
[1645969549115,40.52755148,2735.8,2735.6,5.3]
[1645969549317,5.0,2738.1,2735.7,0.00096]
[1645969549318,40.52755148,2736.7,2735.7,0.00096]
[1645969549514,18.02755148,2735.7,2735.6,0.3]
[1645969549720,0.1461,2737.8,2735.6,0.3]
[1645969549721,0.1461,2737.8,2735.7,0.00096]
[1645969549915,0.00547562,2738.0,2735.7,0.00096]
[1645969549916,0.1461,2737.9,2736.8,0.01292454]
[1645969550216,0.1461,2737.9,2735.7,3.5]
[1645969550217,0.25,2737.5,2736.5,0.5]
[1645969550417,0.25,2737.5,2735.8,6e-05]
[1645969550418,5.1461,2737.4,2735.8,6e-05]
[1645969550617,5.0,2737.1,2735.6,7.3109]
[1645969550815,0.25,2737.0,2735.6,7.3109]
[1645969551217,0.1461,2737.3,2735.6,7.3109]
[1645969551415,1.38778706,2737.0,2736.0,5.0]
[1645969551616,1.38778706,2737.0,2735.8,5.0]
[1645969551815,0.25,2736.8,2736.6,0.86226]
[1645969552056,2.0,2737.1,2736.6,0.86226]
[1645969552265,0.1461,2737.0,2736.6,0.86226]
[1645969552460,2.0,2737.6,2736.6,1.16226]
[1645969552660,0.25,2737.5,2736.6,1.16226]
[1645969552861,0.25,2737.5,2736.7,0.36836]
[1645969553262,0.1461,2738.5,2736.7,0.36836]
[1645969553460,0.25,2737.6,2736.7,5.36836]
[1645969553665,0.25,2737.6,2736.7,0.36836]
[1645969553864,0.25,2737.6,2736.2,0.01250668]
[1645969554062,0.25,2737.6,2736.6,0.3]
[1645969554461,0.25,2737.6,2736.7,0.00096]
[1645969554869,0.2468,2737.6,2736.7,0.00096]
[1645969555265,0.2468,2737.6,2735.9,0.00096]
[1645969555266,2.48851378,2737.6,2735.9,0.00096]
[1645969555465,2.48851378,2737.6,2735.8,0.00096]
[1645969555466,0.21642485,2737.5,2735.8,0.00096]
[1645969555663,5.0,2737.7,2735.8,0.00096]
[1645969555664,0.25,2737.0,2735.8,0.00096]
[1645969555922,2.0,2736.8,2735.8,0.00096]
[1645969556118,0.25,2737.0,2735.8,0.00096]
[1645969556521,0.25,2737.0,2735.8,5.00096]
[1645969556723,0.25,2737.0,2735.8,0.00096]
[1645969556922,1.3393287,2736.6,2735.8,0.00096]
[1645969557324,1.3393287,2736.6,2735.6,7.3109]
[1645969557529,1.3393287,2736.6,2736.0,3.3e-06]
[1645969557722,5.26252019,2736.5,2733.4,3.5]
[1645969557923,0.24884613,2736.0,2733.2,0.01234585]
[1645969558124,0.01272792,2735.7,2733.3,1.0]
[1645969558324,0.01272792,2735.7,2732.5,1.1776]
[1645969558325,2.0,2734.4,2732.5,2.40606572]
[1645969558522,1.0,2735.5,2732.6,3.5]
[1645969558725,0.19340068,2736.5,2733.0,0.01294004]
[1645969558925,0.25,2735.0,2732.8,0.01252221]
[1645969559128,7.51262215,2735.4,2732.5,2.1776]
[1645969559129,0.01249348,2734.8,2732.5,1.1776]
[1645969559323,2.0,2733.1,2732.9,0.03872671]
[1645969559767,0.18008108,2736.5,2733.2,18.27]
[1645969559968,0.25,2737.9,2735.4,0.96583964]
[1645969560178,7.3082,2737.8,2736.2,0.76411427]
[1645969560367,0.25,2737.6,2736.5,5.0]
[1645969560567,0.1461,2741.9,2736.3,0.15111579]
[1645969560568,1.0,2738.9,2736.6,0.00096]
[1645969560771,1.0,2738.9,2736.3,0.15111579]
[1645969560772,3.45967538,2739.1,2736.4,5.00096]
[1645969560968,1.12189764,2738.1,2737.0,5.0]
[1645969561167,0.25,2737.9,2737.0,5.0]
[1645969561371,0.25,2737.9,2737.0,0.98182519]
[1645969561571,0.25,2737.9,2737.0,2.519e-05]
[1645969561772,29.101166,2737.8,2737.0,2.519e-05]
[1645969561970,29.101166,2737.8,2736.4,0.3]
[1645969561971,0.00077481,2736.9,2736.4,0.3]
[1645969562372,0.00077481,2736.9,2734.6,3.65507287]
[1645969562573,0.00077481,2736.9,2734.2,0.51249683]
[1645969562574,63.71603,2736.8,2734.3,3.5]
[1645969562780,0.26247078,2736.4,2734.3,3.70363571]
[1645969563077,0.20519343,2736.9,2735.1,0.16091982]
[1645969563078,1.38245236,2736.7,2735.1,0.16091982]
[1645969563309,1.38245236,2736.7,2735.0,0.01203997]
[1645969563310,1.58245236,2736.7,2735.0,3.5]
[1645969563513,0.03000395,2736.5,2736.2,0.01635145]
[1645969563717,0.03000395,2736.5,2734.9,1.01727976]
[1645969563718,0.03270289,2735.8,2734.9,0.01727976]
[1645969563915,0.25,2735.7,2734.9,0.01727976]
[1645969564115,1.16076827,2735.6,2735.4,5.237e-05]
[1645969564317,7.5,2735.5,2734.9,0.01727976]
[1645969564714,1.16076827,2735.6,2735.0,2.77446]
[1645969564918,1.16076827,2735.6,2735.0,0.36565]
[1645969565121,1.06076827,2735.6,2735.0,4.104756]
[1645969565323,1.06076827,2735.6,2734.9,0.01727976]
[1645969565520,5.0,2735.4,2734.9,0.01727976]
[1645969565719,0.26816743,2735.4,2734.9,0.01727976]
[1645969565919,0.198312,2735.2,2734.9,0.01727976]
[1645969566120,6.07278104,2735.6,2734.9,0.01727976]
[1645969566121,1.07278104,2735.6,2734.9,0.01727976]
[1645969566322,0.01201277,2735.6,2734.9,0.01727976]
[1645969567161,0.00077481,2736.9,2735.3,1.08585068]
[1645969567462,0.00077481,2736.9,2735.4,3.50096]
[1645969567661,0.00077481,2736.9,2735.4,0.00096]
[1645969567866,0.00077481,2736.9,2735.1,3.65607793]
[1645969567867,5.0,2735.8,2735.1,0.00096]
[1645969568060,5.0,2735.8,2734.9,0.01727976]
[1645969568061,5.0,2735.8,2735.2,0.00096]
[1645969568261,5.0,2735.8,2734.9,0.01727976]
[1645969568262,1.0,2736.5,2734.9,0.01823976]
[1645969568462,0.02830276,2735.8,2735.2,5.01892912]
[1645969568661,0.02830276,2735.8,2735.6,1.09877666]
[1645969568862,0.02830276,2735.8,2735.7,7.3107]
[1645969569466,5.01250251,2737.6,2735.7,7.3107]
[1645969569667,5.26250251,2737.6,2735.7,7.3107]
[1645969569868,0.25,2737.6,2735.8,3.7112]
[1645969570063,0.00547721,2735.9,2735.8,3.7112]
[1645969570467,8.276e-05,2736.3,2735.8,3.7112]
[1645969570665,8.276e-05,2736.3,2735.8,3.92488907]
[1645969570915,3.3769,2738.4,2735.8,3.92488907]
[1645969570916,3.3769,2738.4,2735.8,0.42488907]
[1645969571117,3.3769,2738.4,2736.3,0.2112]
[1645969571419,0.25,2737.7,2736.3,0.2112]
[1645969571618,1.35277366,2737.9,2736.3,0.19961008]
[1645969571816,1.35277366,2737.9,2736.1,3.8]
[1645969571817,0.48976,2737.6,2736.8,0.2112]
[1645969572018,1.35277366,2737.9,2736.8,0.2112]
[1645969572019,0.12534,2737.5,2736.8,0.2112]
[1645969572219,0.12534,2737.8,2736.8,0.2112]
[1645969572619,0.01964079,2737.1,2736.8,0.2112]
[1645969573022,0.01964079,2737.1,2736.2,0.45172]
[1645969573218,0.25,2737.0,2736.4,5.0]
[1645969573519,1.35277366,2737.9,2736.5,0.5752137]
[1645969573719,0.00547696,2737.1,2736.8,0.2112]
[1645969573919,0.25,2737.0,2736.8,0.2112]
[1645969574317,0.25,2737.0,2736.8,0.1612]
[1645969574563,0.25,2737.0,2736.8,0.6612]
[1645969574965,0.25,2737.0,2736.0,0.13819997]
[1645969575569,0.25,2737.0,2736.2,5.0]
[1645969575765,0.25,2737.9,2736.2,0.3]
[1645969575965,2.0,2738.3,2736.3,0.48981]
[1645969576167,2.0,2738.3,2736.2,0.3]
[1645969576168,0.25,2737.7,2736.2,0.3]
[1645969576366,0.25,2737.7,2736.4,1.11356081]
[1645969576367,1.28798685,2737.5,2736.4,1.11356081]
[1645969576566,1.28798685,2737.5,2736.5,0.1461]
[1645969576767,0.25,2737.7,2736.5,0.1461]
[1645969576971,0.25,2737.7,2736.4,5.36309145]
[1645969577369,3.3769,2738.4,2736.5,0.15093561]
[1645969577370,0.00547529,2737.2,2736.5,0.15093561]
[1645969577568,7.529e-05,2737.2,2736.6,0.1461]
[1645969577774,2.0,2738.9,2737.4,1.37693925]
[1645969577972,2.0,2738.9,2738.5,5.0]
[1645969578176,0.90183373,2738.9,2738.7,1.0]
[1645969578417,0.0184223,2739.6,2738.8,7.3025]
[1645969578621,0.0184223,2739.6,2738.9,5.0]
[1645969578820,0.05,2740.5,2738.8,8.49955442]
[1645969578821,4.92790756,2739.9,2738.8,8.49955442]
[1645969579119,4.92790756,2739.9,2738.8,7.3025]
[1645969579120,1.42790756,2739.9,2738.8,7.3025]
[1645969579320,3.5,2739.8,2738.8,7.3025]
[1645969579519,1.17790756,2739.9,2738.8,7.3025]
[1645969579520,0.1459,2739.7,2738.8,7.3025]
[1645969579721,0.1459,2739.8,2738.8,7.3025]
[1645969579921,1.05222627,2739.3,2738.8,7.3025]
[1645969580121,0.1459,2739.8,2739.0,0.48981]
[1645969580730,0.1459,2739.9,2738.9,0.24052]
[1645969581134,0.1459,2739.9,2738.8,8.3025]
[1645969581626,2.61557716,2739.9,2739.0,0.48981]
[1645969581820,2.61557716,2739.9,2739.4,1.48981]
[1645969582065,2.61557716,2739.9,2739.4,1.0]
[1645969582260,0.00549361,2739.5,2739.4,1.0]
[1645969582463,0.00549361,2739.5,2739.4,1.48981]
[1645969582661,0.15139361,2739.5,2739.4,1.48981]
[1645969583269,0.02197112,2739.9,2739.4,1.48981]
[1645969583466,487.78094323,2740.0,2739.4,0.48981]
[1645969583669,429.23963164,2740.0,2739.5,0.42993548]
[1645969583868,429.23963164,2740.0,2739.9,7.01257119]
[1645969583869,319.14627673,2740.0,2739.9,7.01257119]
[1645969584069,193.48377957,2740.0,2739.9,59.55577699]
[1645969584373,0.00306678,2743.8,2740.1,0.1778906]
[1645969584668,0.00306678,2743.8,2742.0,6.24894829]
[1645969584871,0.00306678,2743.8,2742.1,5.7817]
[1645969585071,0.00306678,2743.8,2741.5,0.17518442]
[1645969585072,1.64477831,2741.9,2741.5,0.17518442]
[1645969585270,7.5,2743.6,2741.5,0.72891]
[1645969585470,5.0,2742.7,2740.5,3.5]
[1645969585673,0.01240298,2743.1,2740.4,1.24789]
[1645969585674,0.01240298,2743.1,2740.4,0.24789]
[1645969585920,0.01240298,2743.1,2740.6,0.24789]
[1645969586118,1.35203084,2741.5,2740.6,0.24789]
[1645969586318,1.11193859,2741.0,2740.4,0.98841]
[1645969586516,4.0,2741.4,2740.4,0.98841]
[1645969586517,4.0,2741.4,2740.5,7.4593703]
[1645969586917,7.5,2741.3,2740.5,7.03e-05]
[1645969587118,0.00550302,2740.8,2740.5,7.03e-05]
[1645969588017,3.8962481,2742.9,2740.5,7.03e-05]
[1645969588018,0.1459,2741.1,2740.7,0.01298619]
[1645969588217,0.00550303,2740.8,2740.7,0.01298619]
[1645969588421,0.00550303,2740.8,2740.5,7.03e-05]
[1645969588622,8.92865584,2740.7,2739.6,0.18866088]
[1645969588815,8.92865584,2740.7,2739.1,2.62819719]
[1645969588816,1.32235624,2739.7,2739.1,2.62819719]
[1645969589018,2.752,2739.5,2738.3,0.18868047]
[1645969589220,1.32235624,2739.7,2738.3,0.18868047]
[1645969589221,7.5,2739.4,2738.3,0.18868047]
[1645969589415,7.5,2739.4,2737.6,0.75549955]
[1645969589416,7.5,2739.4,2737.6,0.1507944]
[1645969589661,7.5,2739.4,2738.4,0.5]
[1645969589865,5.0,2739.2,2737.2,0.18868103]
[1645969590168,7.5,2739.4,2736.9,0.43497328]
[1645969590169,3.51260217,2739.3,2736.9,0.43497328]
[1645969590466,3.51260217,2739.3,2737.8,1.0]
[1645969590467,5.0,2739.2,2737.8,1.0]
[1645969590664,5.0,2739.2,2736.3,3.04716495]
[1645969590665,0.3526,2738.8,2736.4,0.18790404]
[1645969590866,0.3526,2738.8,2736.2,0.43435349]
[1645969591069,3.5,2739.0,2736.2,0.43435349]
[1645969591265,2.0,2738.6,2736.2,0.43435349]
[1645969591466,3.72039929,2738.5,2737.1,0.5]
[1645969591668,3.72039929,2738.5,2735.9,5.0]
[1645969591669,5.3526,2738.3,2735.9,0.20655506]
[1645969591866,5.3526,2738.3,2735.5,0.25]
[1645969591867,5.0,2737.8,2735.5,0.25]
[1645969592073,4.52454607,2737.7,2737.3,8.456e-05]
[1645969592282,7.5,2737.3,2734.4,0.38181603]
[1645969592467,7.5,2737.3,2734.6,11.32143196]
[1645969592769,7.5,2737.3,2734.8,0.25]
[1645969592965,7.5,2737.3,2734.8,0.40970275]
[1645969593167,7.5,2737.3,2734.8,0.15970275]
[1645969593168,3.5,2737.2,2734.8,0.15970275]
[1645969593424,1.14946579,2735.2,2734.7,0.20242567]
[1645969593627,1.14946579,2735.2,2733.8,0.18873972]
[1645969593628,0.36346579,2735.2,2733.8,0.18873972]
[1645969593820,4.85616579,2736.7,2733.7,0.19011637]
[1645969594021,1.35616579,2736.7,2734.3,0.01258371]
[1645969594224,4.85616579,2736.7,2733.6,2.234]
[1645969594423,2.0,2735.7,2733.6,1.234]
[1645969594621,0.13812755,2735.6,2733.6,1.42728516]
[1645969594821,0.13812755,2735.6,2733.6,1.234]
[1645969594822,1.15845654,2734.6,2733.6,1.234]
[1645969595123,1.15845654,2734.6,2733.4,5.0]
[1645969595124,0.13812755,2735.6,2734.6,0.26213176]
[1645969595522,2.0,2736.1,2734.6,14.53213176]
[1645969595725,2.3526,2736.6,2734.6,3.76213176]
[1645969595922,1.38752381,2735.0,2734.6,0.26213176]
[1645969596327,7.5,2734.9,2734.0,0.5]
[1645969596526,7.5,2734.9,2732.5,5.23295009]
[1645969596527,7.5,2734.9,2732.7,0.18564289]
[1645969596723,2.0,2734.7,2732.5,5.16343621]
[1645969596925,2.0,2734.7,2732.7,0.3526]
[1645969597164,2.0,2735.1,2734.7,0.00202264]
[1645969597363,2.0,2735.1,2735.0,0.00066326]
[1645969598362,1.26103878,2735.2,2735.0,0.00066326]
[1645969598566,3.29715476,2737.2,2735.0,0.00066326]
[1645969598567,3.52123365,2737.2,2735.0,0.00066326]
[1645969598764,5.3526,2736.5,2735.0,0.00066326]
[1645969598977,0.01224839,2736.4,2735.0,0.00066326]
[1645969599169,5.0,2736.2,2735.0,0.00066326]
[1645969599365,0.32222093,2736.3,2735.0,0.00066326]
[1645969599565,1.25340074,2735.5,2735.0,0.00066326]
[1645969599966,2.0,2735.1,2735.0,0.00066326]
[1645969600167,1.02848253,2735.5,2735.0,0.14686326]
[1645969600366,1.02848253,2735.5,2733.4,4.5]
[1645969600367,7.5,2735.4,2733.4,3.69664015]
[1645969600565,2.0,2735.0,2733.5,1.1462]
[1645969601012,0.60888889,2735.0,2733.5,1.1462]
[1645969601211,3.51243882,2735.3,2733.5,0.1462]
[1645969601212,2.0,2734.6,2733.5,0.1462]
[1645969601718,2.0,2734.6,2734.1,0.00201804]
[1645969601911,2.0,2734.6,2734.2,0.1462]
[1645969602116,2.0,2734.6,2734.1,0.00201804]
[1645969602117,0.01290017,2735.0,2734.1,1.804e-05]
[1645969602312,2.0,2734.2,2734.1,1.804e-05]
[1645969602714,7.5,2734.1,2732.2,1.0]
[1645969602915,7.5,2734.1,2731.2,3.07969242]
[1645969602916,0.0122253,2733.7,2732.5,0.5]